fUST/lending_fUST_20250816
["ID","MTS","AMOUNT","RATE_DAILY","PERIOD"]
[379550764,1755328256390,-420.0,0.00022739,3]
[379550766,1755328256399,-525.37,0.00022739,3]
[379550768,1755328256408,-1924.72,0.00022739,3]
[379550770,1755328256418,-480.0,0.00022739,3]
[379550772,1755328256427,-480.0,0.00022739,3]
[379550774,1755328256436,-542.02,0.00022739,3]
[379550776,1755328256446,-480.0,0.00022739,3]
[379550778,1755328256455,-480.0,0.00022739,3]
[379550780,1755328256464,-480.0,0.00022739,3]
[379550782,1755328256473,-480.0,0.00022739,3]
[379550784,1755328256482,-480.0,0.00022739,3]
[379550786,1755328256491,-6080.9,0.00022739,3]
[379550788,1755328256501,-291.780469,0.00022739,7]
[379550790,1755328256510,-291.780469,0.00022739,7]
[379550792,1755328256520,-516.16012847,0.00022739,3]
[379550794,1755328256529,-291.780469,0.00022739,7]
[379550796,1755328256540,-291.780469,0.00022739,7]
[379550797,1755328256549,-696.17,0.00022739,3]
[379550798,1755328256558,-480.0,0.00022739,3]
[379550799,1755328256567,-428.34991484,0.00022739,3]
[379550800,1755328256576,-400.0,0.00022739,3]
[379550801,1755328256586,-480.0,0.00022739,3]
[379550802,1755328256596,-400.0,0.00022739,3]
[379550803,1755328256605,-803.04,0.00022739,3]
[379550804,1755328256614,-480.0,0.00022739,3]
[379550805,1755328256623,-860.82,0.00022739,3]
[379550806,1755328256632,-1344.81,0.00022739,3]
[379550807,1755328256642,-480.0,0.00022739,3]
[379550808,1755328256651,-151.0,0.00022739,7]
[379550809,1755328256660,-480.0,0.00022739,3]
[379550810,1755328256669,-480.0,0.00022739,3]
[379550811,1755328256678,-480.0,0.00022739,3]
[379550812,1755328256687,-480.0,0.00022739,3]
[379550813,1755328256696,-157.9951,0.00022739,7]
[379550814,1755328256705,-3430.06,0.00022739,3]
[379550815,1755328256714,-480.0,0.00022739,3]
[379550816,1755328256723,-494.42183524,0.00022739,3]
[379550817,1755328256732,-3241.77,0.00022739,3]
[379550818,1755328256741,-420.0,0.00022739,3]
[379550819,1755328256750,-480.0,0.00022739,3]
[379550820,1755328256759,-480.0,0.00022739,3]
[379550822,1755328256769,-480.0,0.00022739,3]
[379550824,1755328256778,-182.24416,0.00022739,7]
[379550826,1755328256787,-1999.83,0.00022739,3]
[379550828,1755328256795,-182.24416,0.00022739,7]
[379550830,1755328256805,-480.0,0.00022739,3]
[379550832,1755328256814,-496.83682098,0.00022739,3]
[379550834,1755328256823,-494.94,0.00022739,3]
[379550836,1755328256832,-228.588954,0.00022739,7]
[379550838,1755328256841,-480.0,0.00022739,3]
[379550840,1755328256851,-767.35,0.00022739,3]
[379550842,1755328256859,-228.588954,0.00022739,7]
[379550844,1755328256868,-600.07,0.00022739,3]
[379550846,1755328256878,-151.0,0.00022739,7]
[379550848,1755328256887,-480.0,0.00022739,3]
[379550850,1755328256897,-584.82,0.00022739,3]
[379550852,1755328256906,-883.94,0.00022739,3]
[379550854,1755328256915,-480.0,0.00022739,3]
[379550856,1755328256924,-1294.78,0.00022739,3]
[379550857,1755328256932,-480.0,0.00022739,3]
[379550859,1755328256942,-480.0,0.00022739,3]
[379550861,1755328256951,-2199.96,0.00022739,3]
[379550863,1755328256960,-676.24,0.00022739,3]
[379550865,1755328256969,-520.0,0.00022739,3]
[379550867,1755328256978,-707.64,0.00022739,3]
[379550869,1755328256988,-531.29,0.00022739,3]
[379550884,1755328257118,-868.41,0.00022739,3]
[379550886,1755328257127,-566.73,0.00022739,3]
[379550888,1755328257136,-400.0,0.00022739,3]
[379550890,1755328257146,-480.0,0.00022739,3]
[379550892,1755328257155,-480.0,0.00022739,3]
[379550894,1755328257164,-572.68,0.00022739,3]
[379550896,1755328257173,-480.0,0.00022739,3]
[379550898,1755328257182,-480.0,0.00022739,3]
[379550900,1755328257191,-1261.54,0.00022739,3]
[379550902,1755328257201,-480.0,0.00022739,3]
[379550904,1755328257210,-665.9,0.00022739,3]
[379550906,1755328257220,-480.0,0.00022739,3]
[379550908,1755328257229,-480.0,0.00022739,3]
[379550910,1755328257238,-480.0,0.00022739,3]
[379550912,1755328257247,-879.65,0.00022739,3]
[379550914,1755328257256,-334.43064465,0.00022772,2]
[379550916,1755328257265,-500.0,0.00022773,2]
[379550918,1755328257279,-500.0,0.00022773,2]
[379550920,1755328257287,-500.0,0.00022773,2]
[379550922,1755328257298,-570.89467985,0.00022773,2]
[379550924,1755328257307,-500.0,0.00022773,2]
[379550925,1755328257316,-500.0,0.00022773,2]
[379550927,1755328257326,-536.56572488,0.00022773,2]
[379550929,1755328257335,-501.32918472,0.00022773,2]
[379550931,1755328257345,-500.0,0.00022773,2]
[379550933,1755328257355,-500.90979466,0.00022773,2]
[379550935,1755328257364,-113.59783226,0.00022773,2]
[379550938,1755328257380,-383.15438869,0.00022773,2]
[379550940,1755328257391,-978.745,0.00022773,2]
[379550942,1755328257400,-637.0,0.00022773,2]
[379550944,1755328257410,-2152.0,0.00022773,2]
[379550946,1755328257419,-410.192,0.00022779,2]
[379550948,1755328257429,-160.0,0.000228,2]
[379550950,1755328257438,-501.81116805,0.0002288,2]
[379550952,1755328257448,-500.0,0.0002288,2]
[379550954,1755328257458,-320.5006397,0.0002288,2]
[379550956,1755328257468,-200.0,0.0002292,20]
[379550958,1755328257478,-200.0,0.0002292,20]
[379550960,1755328257488,-200.0,0.0002292,20]
[379550962,1755328257497,-200.0,0.0002292,20]
[379550964,1755328257506,-200.0,0.0002292,20]
[379550966,1755328257516,-200.0,0.0002292,20]
[379550968,1755328257525,-200.0,0.0002292,20]
[379550969,1755328257535,-200.0,0.0002292,20]
[379550971,1755328257544,-200.0,0.0002292,20]
[379550973,1755328257554,-200.0,0.0002292,20]
[379550975,1755328257563,-240.0,0.0002292,20]
[379550977,1755328257573,-560.97670868,0.00022948,2]
[379550979,1755328257582,-168.87316342,0.00022956,2]
[379550981,1755328257594,-431.16919614,0.00022973,2]
[379550983,1755328257604,-151.0,0.0002299,7]
[379550985,1755328257613,-151.0,0.0002299,7]
[379550987,1755328257623,-151.0,0.0002299,7]
[379550989,1755328257632,-151.0,0.0002299,7]
[379550991,1755328257641,-151.0,0.0002299,7]
[379550993,1755328257650,-151.0,0.0002299,7]
[379550995,1755328257659,-370.579708,0.0002299,7]
[379550997,1755328257674,-370.579708,0.0002299,7]
[379550999,1755328257683,-151.0,0.0002299,7]
[379551001,1755328257692,-151.0,0.0002299,7]
[379551003,1755328257701,-241.411951,0.0002299,7]
[379551005,1755328257710,-151.0,0.0002299,7]
[379551007,1755328257719,-151.0,0.0002299,7]
[379551009,1755328257728,-151.0,0.0002299,7]
[379551011,1755328257737,-198.225422,0.0002299,7]
[379551013,1755328257746,-198.225422,0.0002299,7]
[379551015,1755328257757,-323.942649,0.0002299,7]
[379551017,1755328257766,-323.942649,0.0002299,7]
[379551019,1755328257776,-306.56008104,0.00023,2]
[379551021,1755328257786,-151.0,0.00023,7]
[379551023,1755328257797,-151.0,0.00023,7]
[379551025,1755328257807,-160.0,0.00023,3]
[379551027,1755328257816,-151.0,0.00023,9]
[379551029,1755328257825,-1002.28409,0.00023,2]
[379551031,1755328257836,-160.0,0.00023,2]
[379551033,1755328257846,-160.0,0.00023,3]
[379551035,1755328257855,-843.37884167,0.00023,3]
[379551037,1755328257864,-216.80276362,0.00023,3]
[379551039,1755328257877,-528.38334358,0.00023,3]
[379551041,1755328257886,-772.686936,0.00023013,7]
[379551043,1755328257895,-772.686936,0.00023013,7]
[379551045,1755328257904,-276.051675,0.00023013,7]
[379551047,1755328257914,-276.051675,0.00023013,7]
[379551049,1755328257924,-151.0,0.00023013,7]
[379551051,1755328257933,-206.961774,0.00023013,7]
[379551053,1755328257942,-206.961774,0.00023013,7]
[379551055,1755328257951,-236.598006,0.00023013,7]
[379551057,1755328257960,-151.0,0.00023013,7]
[379551059,1755328257969,-151.0,0.00023013,7]
[379551061,1755328257978,-151.0,0.00023013,7]
[379551063,1755328257987,-151.0,0.00023013,7]
[379551065,1755328257997,-151.093512,0.00023013,7]
[379551067,1755328258006,-151.0,0.00023013,7]
[379551069,1755328258016,-151.0,0.00023013,7]
[379551071,1755328258025,-186.484611,0.00023013,7]
[379551073,1755328258034,-186.484611,0.00023013,7]
[379551075,1755328258043,-480.0,0.00023013,3]
[379551077,1755328258052,-451.078572,0.00023013,7]
[379551079,1755328258066,-451.078572,0.00023013,7]
[379551081,1755328258075,-480.0,0.00023013,3]
[379551083,1755328258084,-392.109717,0.00023013,7]
[379551085,1755328258094,-505.11,0.00023013,3]
[379551087,1755328258103,-480.0,0.00023013,3]
[379551089,1755328258113,-480.0,0.00023013,3]
[379551091,1755328258122,-195.11,0.00023013,3]
[379551093,1755328258131,-480.0,0.00023013,3]
[379551095,1755328258140,-420.0,0.00023013,3]
[379551096,1755328258149,-480.0,0.00023013,3]
[379551098,1755328258158,-480.0,0.00023013,3]
[379551100,1755328258167,-226.3315268,0.00023013,3]
[379551102,1755328258176,-480.0,0.00023013,3]
[379551104,1755328258185,-380.0,0.00023013,3]
[379551106,1755328258194,-480.0,0.00023013,3]
[379551108,1755328258205,-954.9,0.00023013,3]
[379551110,1755328258215,-480.0,0.00023013,3]
[379551112,1755328258224,-597.6,0.00023013,3]
[379551114,1755328258233,-420.0,0.00023013,3]
[379551116,1755328258243,-481.98,0.00023013,3]
[379551118,1755328258253,-420.0,0.00023013,3]
[379551120,1755328258263,-1276.46,0.00023013,3]
[379551122,1755328258275,-480.0,0.00023013,3]
[379551124,1755328258284,-480.0,0.00023013,3]
[379551126,1755328258294,-480.0,0.00023013,3]
[379551128,1755328258303,-480.0,0.00023013,3]
[379551130,1755328258314,-550.68912768,0.00023013,3]
[379551133,1755328258327,-480.0,0.00023013,3]
[379551135,1755328258342,-480.0,0.00023013,3]
[379551138,1755328258358,-340.0,0.00023013,3]
[379551140,1755328258371,-480.0,0.00023013,3]
[379551142,1755328258385,-210.3,0.00023013,3]
[379551145,1755328258399,-480.0,0.00023013,3]
[379551147,1755328258412,-480.0,0.00023013,3]
[379551149,1755328258426,-480.0,0.00023013,3]
[379551152,1755328258439,-480.0,0.00023013,3]
[379551155,1755328258455,-4600.23,0.00023013,3]
[379551157,1755328258470,-480.0,0.00023013,3]
[379551159,1755328258482,-480.0,0.00023013,3]
[379551161,1755328258495,-623.34,0.00023013,3]
[379551164,1755328258507,-480.0,0.00023013,3]
[379551166,1755328258521,-480.0,0.00023013,3]
[379551168,1755328258535,-1006.4,0.00023013,3]
[379551171,1755328258546,-745.76,0.00023013,3]
[379551173,1755328258557,-151.0,0.00023013,7]
[379551175,1755328258569,-1911.82,0.00023013,3]
[379551178,1755328258582,-631.55,0.00023013,3]
[379551180,1755328258595,-480.0,0.00023013,3]
[379551183,1755328258609,-480.0,0.00023013,3]
[379551185,1755328258625,-841.83,0.00023013,3]
[379551187,1755328258637,-373.99255576,0.00023013,3]
[379551190,1755328258650,-420.0,0.00023013,3]
[379551192,1755328258661,-227.668846,0.00023013,7]
[379551194,1755328258672,-480.0,0.00023013,3]
[379551196,1755328258684,-227.668846,0.00023013,7]
[379551199,1755328258698,-544.47114283,0.00023013,3]
[379551201,1755328258711,-983.55,0.00023013,3]
[379551203,1755328258721,-510.20513783,0.00023013,3]
[379551206,1755328258733,-480.0,0.00023013,3]
[379551208,1755328258747,-700.27,0.00023013,3]
[379551210,1755328258758,-480.0,0.00023013,3]
[379551212,1755328258769,-2358.05,0.00023013,3]
[379551215,1755328258780,-102.64555251,0.00023013,3]
[379551223,1755328259210,-480.0,0.00021917,3]
[379551224,1755328259224,-404.87444749,0.00023013,3]
[379551225,1755328259236,-480.0,0.00023013,3]
[379551226,1755328259246,-480.0,0.00023013,3]
[379551227,1755328259255,-480.0,0.00023013,3]
[379551228,1755328259266,-480.0,0.00023013,3]
[379551229,1755328259280,-480.0,0.00023013,3]
[379551230,1755328259289,-480.0,0.00023013,3]
[379551231,1755328259299,-151.0,0.00023013,7]
[379551232,1755328259308,-480.0,0.00023013,3]
[379551234,1755328259318,-420.0,0.00023013,3]
[379551236,1755328259333,-480.0,0.00023013,3]
[379551238,1755328259344,-636.33,0.00023013,3]
[379551239,1755328259354,-5161.5,0.00023013,3]
[379551242,1755328259364,-480.0,0.00023013,3]
[379551243,1755328259374,-480.0,0.00023013,3]
[379551245,1755328259383,-4483.28,0.00023013,3]
[379551247,1755328259392,-478.35908917,0.00023013,3]
[379551250,1755328259404,-1.64091083,0.00023013,3]
[379551252,1755328259414,-625.2,0.00023013,3]
[379551254,1755328259423,-32.44981057,0.00023013,3]
[379551255,1755328259490,-460.0,0.00021917,3]
[379551256,1755328259499,-480.0,0.00021917,3]
[379551257,1755328259508,-440.0,0.00022191,3]
[379551258,1755328259517,-488.85018943,0.00023013,3]
[379551259,1755328259526,-480.0,0.00023013,3]
[379551260,1755328259536,-480.0,0.00023013,3]
[379551261,1755328259545,-480.0,0.00023013,3]
[379551262,1755328259554,-480.0,0.00023013,3]
[379551263,1755328259564,-480.0,0.00023013,3]
[379551264,1755328259575,-480.0,0.00023013,3]
[379551265,1755328259584,-480.0,0.00023013,3]
[379551266,1755328259595,-480.0,0.00023013,3]
[379551267,1755328259604,-480.0,0.00023013,3]
[379551268,1755328259615,-525.37,0.00023013,3]
[379551269,1755328259624,-1924.72,0.00023013,3]
[379551270,1755328259633,-346.87348867,0.00023013,3]
[379551271,1755328259642,-542.02,0.00023013,3]
[379551272,1755328259651,-480.0,0.00023013,3]
[379551273,1755328259660,-480.0,0.00023013,3]
[379551274,1755328259669,-480.0,0.00023013,3]
[379551275,1755328259678,-480.0,0.00023013,3]
[379551276,1755328259687,-480.0,0.00023013,3]
[379551277,1755328260008,-3066.25720889,0.00023013,3]
[379551278,1755328260022,-3014.64279111,0.00023013,3]
[379551279,1755328260032,-291.780469,0.00023013,7]
[379551280,1755328260042,-291.780469,0.00023013,7]
[379551281,1755328260053,-696.17,0.00023013,3]
[379551282,1755328260063,-234.49021301,0.00023013,3]
[379551283,1755328260073,-480.0,0.00023013,3]
[379551284,1755328260083,-803.04,0.00023013,3]
[379551285,1755328260093,-480.0,0.00023013,3]
[379551286,1755328260110,-860.82,0.00023013,3]
[379551287,1755328260120,-1344.81,0.00023013,3]
[379551288,1755328260129,-480.0,0.00023013,3]
[379551289,1755328260140,-151.0,0.00023013,7]
[379551290,1755328260150,-600.42,0.00023013,3]
[379551291,1755328260159,-213.52,0.00023013,3]
[379551292,1755328260169,-518.36467572,0.00023013,3]
[379551293,1755328260179,-480.0,0.00023013,3]
[379551294,1755328260188,-3430.06,0.00023013,3]
[379551295,1755328260197,-480.0,0.00023013,3]
[379551296,1755328260207,-151.0,0.00023013,3]
[379551297,1755328260216,-151.0,0.00023013,3]
[379551298,1755328260226,-198.0,0.00023013,3]
[379551299,1755328260235,-1683.46753174,0.00023013,3]
[379551300,1755328260247,-1558.30246826,0.00023013,3]
[379551301,1755328260257,-480.0,0.00023013,3]
[379551302,1755328260266,-480.0,0.00023013,3]
[379551303,1755328260280,-480.0,0.00023013,3]
[379551304,1755328260290,-182.24416,0.00023013,7]
[379551305,1755328260299,-151.0,0.00023013,3]
[379551306,1755328260308,-1999.83,0.00023013,3]
[379551307,1755328260319,-182.24416,0.00023013,7]
[379551308,1755328260328,-480.0,0.00023013,3]
[379551309,1755328260337,-494.94,0.00023013,3]
[379551310,1755328260349,-228.588954,0.00023013,7]
[379551311,1755328260359,-480.0,0.00023013,3]
[379551312,1755328260368,-767.35,0.00023013,3]
[379551313,1755328260378,-228.588954,0.00023013,7]
[379551314,1755328260388,-600.07,0.00023013,3]
[379551315,1755328260398,-151.0,0.00023013,7]
[379551316,1755328260407,-584.82,0.00023013,3]
[379551317,1755328260417,-480.0,0.00023013,3]
[379551318,1755328260426,-883.94,0.00023013,3]
[379551319,1755328260436,-480.0,0.00023013,3]
[379551320,1755328260446,-1294.78,0.00023013,3]
[379551321,1755328260456,-298.45183053,0.00023013,3]
[379551322,1755328260465,-480.0,0.00023013,3]
[379551323,1755328260474,-2199.96,0.00023013,3]
[379551324,1755328260483,-676.24,0.00023013,3]
[379551325,1755328260493,-707.64,0.00023013,3]
[379551326,1755328260503,-531.29,0.00023013,3]
[379551327,1755328260513,-868.41,0.00023013,3]
[379551328,1755328260522,-249.6173385,0.00023013,3]
[379551329,1755328260534,-317.1126615,0.00023013,3]
[379551330,1755328260544,-480.0,0.00023013,3]
[379551331,1755328260553,-480.0,0.00023013,3]
[379551332,1755328260563,-572.68,0.00023013,3]
[379551333,1755328260572,-380.0,0.00023013,3]
[379551334,1755328260582,-293.24525804,0.00023013,3]
[379551335,1755328260593,-480.0,0.00023013,3]
[379551336,1755328260601,-160.78933022,0.00023013,3]
[379551337,1755328260611,-1261.54,0.00023013,3]
[379551338,1755328260620,-420.0,0.00023013,3]
[379551339,1755328260630,-665.9,0.00023013,3]
[379551340,1755328260640,-151.99875039,0.00023013,3]
[379551341,1755328260649,-480.0,0.00023013,3]
[379551342,1755328260659,-480.0,0.00023013,3]
[379551343,1755328260668,-480.0,0.00023013,3]
[379551344,1755328260677,-879.65,0.00023013,3]
[379551345,1755328260687,-501.70449007,0.00023021,2]
[379551346,1755328260696,-1000.0,0.00023021,2]
[379551347,1755328260706,-1000.0,0.00023021,2]
[379551348,1755328260715,-1000.0,0.00023021,2]
[379551349,1755328260724,-500.66280109,0.00023021,2]
[379551350,1755328260733,-774.27990214,0.00023021,2]
[379551351,1755328260743,-1000.0,0.00023021,2]
[379551352,1755328260752,-1500.0,0.00023068,2]
[379551353,1755328260762,-151.0,0.000231,7]
[379551354,1755328260770,-168.0,0.00023178,2]
[379551355,1755328260780,-645.0,0.000232,2]
[379551356,1755328260789,-200.0,0.0002327,7]
[379551357,1755328260799,-159.73,0.0002328,2]
[379551358,1755328260809,-150.0,0.00023286,2]
[379551359,1755328260818,-5400.0570848,0.00023287,2]
[379551391,1755328300914,342.206173,0.00013699,2]
[379551397,1755328353015,468.91629614,0.000199,2]
[379551410,1755328528148,453.28575309,0.000199,2]
[379551431,1755328706774,438.1762279,0.000199,2]
[379551457,1755328882426,423.57035354,0.000199,2]
[379551474,1755329071549,409.45134191,0.000199,2]
[379551490,1755329172649,1000.0,0.00028767,120]
[379551501,1755329225119,-190.10711612,0.0002,2]
[379551502,1755329225142,-342.206173,0.00020187,2]
[379551503,1755329225165,-72.48350324,0.000203,2]
[379551504,1755329229086,-237.39649676,0.000203,2]
[379551505,1755329229110,-261.525521,0.00020366,2]
[379551506,1755329229137,-89.66981797,0.00020408,2]
[379551507,1755329229174,-319.7815237,0.00020408,2]
[379551508,1755329229198,-27.49963157,0.00020626,2]
[379551512,1755329247099,383.93969085,0.000199,2]
[379551513,1755329257318,307.985555,0.00013699,2]
[379551545,1755329394222,165.24,0.000199,2]
[379551549,1755329431245,200.0,0.00027125,120]
[379551604,1755329432582,-465.29937256,0.0002,2]
[379551609,1755329432621,-637.16271783,0.0002,2]
[379551610,1755329432632,-593.79374207,0.0002,2]
[379551612,1755329432643,-969.68004091,0.0002,2]
[379551614,1755329432654,-527.3554621,0.0002,2]
[379551617,1755329432669,-839.7816943,0.0002,2]
[379551619,1755329432679,-270.05313544,0.0002,2]
[379551693,1755329434992,366.49685,0.00027,120]
[379551736,1755329438858,-229.94686456,0.0002,2]
[379551737,1755329438868,-307.985555,0.00020187,2]
[379551738,1755329438878,-140.50036843,0.00020626,2]
[379551739,1755329438888,-300.0,0.0002063,2]
[379551740,1755329438899,-168.0,0.00020631,2]
[379551741,1755329438908,-168.0,0.00020794,2]
[379551742,1755329438919,-168.0,0.00020842,2]
[379551743,1755329438928,-500.0,0.00021,2]
[379551744,1755329438937,-168.0,0.00021072,2]
[379551745,1755329438947,-168.0,0.00021283,2]
[379551746,1755329438956,-168.0,0.00021417,2]
[379551747,1755329438965,-160.0,0.00021469,2]
[379551748,1755329438974,-215.68093138,0.00021469,2]
[379551749,1755329438984,-168.0,0.00021475,2]
[379551750,1755329438993,-301.79321792,0.00021804,2]
[379551751,1755329439003,-151.0,0.00021804,2]
[379551752,1755329439013,-151.0,0.00021804,2]
[379551753,1755329439022,-151.0,0.00021804,2]
[379551754,1755329439032,-151.0,0.00021804,2]
[379551755,1755329439042,-151.0,0.00021804,2]
[379551756,1755329439052,-151.0,0.00021804,2]
[379551757,1755329439061,-151.0,0.00021804,2]
[379551758,1755329439070,-151.0,0.00021804,2]
[379551759,1755329439079,-151.0,0.00021804,2]
[379551760,1755329439088,-296.20678208,0.00021804,2]
[379551761,1755329439098,-10000.0,0.00021817,2]
[379551762,1755329439107,-1000.0,0.00021817,2]
[379551763,1755329439117,-168.0,0.00021866,2]
[379551764,1755329439126,-150.3,0.00021907,3]
[379551765,1755329439135,-450.95,0.00021907,3]
[379551766,1755329439145,-493.28,0.00021907,10]
[379551767,1755329439154,-899.71,0.00021907,10]
[379551768,1755329439163,-749.76,0.00021907,10]
[379551769,1755329439173,-843.58077381,0.00021914,2]
[379551770,1755329439182,-480.0,0.00021917,3]
[379551771,1755329439191,-480.0,0.00021917,3]
[379551772,1755329439200,-460.0,0.00021917,3]
[379551773,1755329439209,-480.0,0.00021917,3]
[379551774,1755329439219,-460.0,0.00021917,3]
[379551775,1755329439228,-160.0,0.00021917,3]
[379551776,1755329439237,-544.80145868,0.00021917,3]
[379551777,1755329439247,-460.0,0.00021917,3]
[379551778,1755329439256,-480.0,0.00021917,3]
[379551779,1755329439265,-480.0,0.00021917,3]
[379551780,1755329439274,-460.0,0.00021917,3]
[379551781,1755329439284,-460.0,0.00021917,3]
[379551782,1755329439293,-480.0,0.00021917,3]
[379551783,1755329439303,-347.65585921,0.00021917,3]
[379551784,1755329439313,-460.0,0.00021917,3]
[379551785,1755329439322,-462.37319109,0.00021917,3]
[379551786,1755329439332,-460.0,0.00021917,3]
[379551787,1755329439341,-460.0,0.00021917,3]
[379551788,1755329439350,-460.0,0.00021917,3]
[379551789,1755329439360,-460.0,0.00021917,3]
[379551790,1755329439369,-460.0,0.00021917,3]
[379551791,1755329439379,-480.0,0.00021917,3]
[379551792,1755329439388,-460.0,0.00021917,3]
[379551793,1755329439399,-460.0,0.00021917,3]
[379551794,1755329439408,-460.0,0.00021917,3]
[379551795,1755329439417,-460.0,0.00021917,3]
[379551796,1755329439427,-460.0,0.00021917,3]
[379551797,1755329439436,-480.0,0.00021917,3]
[379551798,1755329439445,-480.0,0.00021917,3]
[379551799,1755329439455,-460.0,0.00021917,3]
[379551800,1755329439464,-480.0,0.00021917,3]
[379551801,1755329439473,-480.0,0.00021917,3]
[379551802,1755329439482,-480.0,0.00021917,3]
[379551803,1755329439491,-461.1873252,0.00021917,3]
[379551804,1755329439501,-480.0,0.00021917,3]
[379551805,1755329439510,-463.91606532,0.00021917,3]
[379551806,1755329439519,-480.0,0.00021917,3]
[379551807,1755329439529,-460.0,0.00021917,3]
[379551808,1755329439538,-480.0,0.00021917,3]
[379551809,1755329439548,-480.0,0.00021917,3]
[379551810,1755329439557,-461.19690133,0.00021917,3]
[379551811,1755329439566,-480.0,0.00021917,3]
[379551812,1755329439576,-460.0,0.00021917,3]
[379551813,1755329439586,-480.0,0.00021917,3]
[379551814,1755329439595,-480.0,0.00021917,3]
[379551815,1755329439604,-480.0,0.00021917,3]
[379551816,1755329439613,-503.38479789,0.00021917,3]
[379551817,1755329439624,-345.62166821,0.00021917,3]
[379551818,1755329439633,-480.0,0.00021917,3]
[379551819,1755329439642,-480.0,0.00021917,3]
[379551820,1755329439651,-460.0,0.00021917,3]
[379551821,1755329439660,-460.0,0.00021917,3]
[379551822,1755329439670,-480.0,0.00021917,3]
[379551823,1755329439679,-480.0,0.00021917,3]
[379551824,1755329439688,-480.0,0.00021917,3]
[379551825,1755329439697,-480.0,0.00021917,3]
[379551826,1755329439706,-480.0,0.00021917,3]
[379551827,1755329439716,-480.0,0.00021917,3]
[379551828,1755329439882,-480.0,0.00021917,3]
[379551829,1755329439892,-460.0,0.00021917,3]
[379551830,1755329439901,-461.31190261,0.00021917,3]
[379551831,1755329439911,-460.0,0.00021917,3]
[379551832,1755329439921,-480.0,0.00021917,3]
[379551833,1755329439930,-480.0,0.00021917,3]
[379551834,1755329439940,-460.0,0.00021917,3]
[379551835,1755329439949,-480.0,0.00021917,3]
[379551836,1755329439959,-460.0,0.00021917,3]
[379551837,1755329439968,-480.0,0.00021917,3]
[379551838,1755329439977,-460.0,0.00021917,3]
[379551839,1755329439986,-305.65386323,0.00021917,3]
[379551840,1755329439995,-480.0,0.00021917,3]
[379551841,1755329440004,-460.0,0.00021917,3]
[379551842,1755329440014,-480.0,0.00021917,3]
[379551843,1755329440024,-460.0,0.00021917,3]
[379551844,1755329440033,-460.0,0.00021917,3]
[379551845,1755329440042,-466.1882192,0.00021917,3]
[379551846,1755329440052,-460.0,0.00021917,3]
[379551847,1755329440061,-460.0,0.00021917,3]
[379551848,1755329440070,-480.0,0.00021917,3]
[379551849,1755329440079,-462.17084166,0.00021917,3]
[379551850,1755329440088,-480.0,0.00021917,3]
[379551851,1755329440098,-461.9529908,0.00021917,3]
[379551852,1755329440107,-480.0,0.00021917,3]
[379551853,1755329440117,-480.0,0.00021917,3]
[379551855,1755329440126,-480.0,0.00021917,3]
[379551856,1755329440135,-480.0,0.00021917,3]